bitfinex/quotes_BTCUSD_20250822
["timestamp","ask_amount","ask_price","bid_price","bid_amount"]
[1755874699515,6.33247527,116010.0,116000.0,0.84404463]
[1755874699729,5.67119145,116010.0,116000.0,0.84728463]
[1755874699937,6.32646724,116010.0,116000.0,0.84728463]
[1755874701025,0.4748544,116010.0,116000.0,0.84728463]
[1755874701232,0.80164069,116010.0,116000.0,0.84728463]
[1755874701478,0.82011195,116010.0,116000.0,0.84778463]
[1755874701712,1.41542551,116010.0,116000.0,0.84245463]
[1755874701912,1.33457048,116010.0,116000.0,0.84245463]
[1755874702331,1.33781048,116010.0,116000.0,0.84245463]
[1755874702533,0.86875139,116010.0,116000.0,0.84245463]
[1755874702739,1.35766834,116010.0,116000.0,0.84245463]
[1755874702960,1.44777799,116010.0,116000.0,0.84245463]
[1755874703146,6.44777799,116010.0,116000.0,0.84245463]
[1755874703291,6.47856661,116010.0,116000.0,0.84245463]
[1755874703499,6.45550081,116010.0,116000.0,0.84245463]
[1755874703702,6.4753788,116010.0,116000.0,0.84245463]
[1755874703909,6.35561053,116010.0,116000.0,0.84454463]
[1755874704295,5.86672564,116010.0,116000.0,0.84454463]
[1755874704503,6.35561053,116010.0,116000.0,0.84454463]
[1755874704714,6.35561053,116010.0,116000.0,0.84778463]
[1755874705125,6.35561053,116010.0,116000.0,0.84454463]
[1755874705369,6.44248018,116010.0,116000.0,0.84245463]
[1755874705630,6.4204138,116010.0,116000.0,0.84245463]
[1755874705846,6.442519,116010.0,116000.0,0.84245463]
[1755874706068,6.444629,116010.0,116000.0,0.84245463]
[1755874706263,6.38854835,116010.0,116000.0,0.84245463]
[1755874706495,6.38643835,116010.0,116000.0,0.84454463]
[1755874706702,6.38643835,116010.0,116000.0,0.84245463]
[1755874706891,6.35517305,116010.0,116000.0,0.84245463]
[1755874707286,6.40135598,116010.0,116000.0,0.84245463]
[1755874707480,6.48498563,116010.0,116000.0,0.84245463]
[1755874707683,5.51569923,116010.0,116000.0,0.84454463]
[1755874707916,0.66342506,116010.0,116000.0,0.84778463]
[1755874708114,0.30026895,116010.0,116000.0,0.84778463]
[1755874708392,0.29424016,116010.0,116000.0,0.84778463]
[1755874708598,0.08944347,116020.0,116000.0,1.33666952]
[1755874708599,0.06628,116020.0,116000.0,1.33666952]
[1755874708802,0.17292,116020.0,116010.0,0.48888489]
[1755874709241,0.17292,116020.0,116010.0,0.52722014]
[1755874709625,0.17292,116020.0,116010.0,0.53678625]
[1755874709988,0.17284,116030.0,116010.0,0.70918518]
[1755874710250,0.1728,116030.0,116020.0,0.0021548]
[1755874710479,0.1728,116030.0,116020.0,0.60999114]
[1755874710685,0.1728,116030.0,116010.0,0.13478611]
[1755874710887,0.1728,116030.0,116010.0,0.74262245]
[1755874711319,0.1728,116030.0,116010.0,0.04790136]
[1755874711532,0.1728,116030.0,116000.0,1.45229097]
[1755874711788,0.1738,116030.0,116020.0,0.005]
[1755874712354,0.1728,116030.0,116010.0,0.04879683]
[1755874712701,0.1738,116030.0,116010.0,0.006]
[1755874713048,0.1738,116030.0,116010.0,0.011]
[1755874713458,0.1738,116030.0,116010.0,0.006]
[1755874713856,0.1738,116030.0,116010.0,0.012]
[1755874714078,0.1728,116030.0,116010.0,0.61383634]
[1755874714469,0.1738,116030.0,116020.0,0.006]
[1755874714690,0.26068475,116030.0,116020.0,0.006]
[1755874714911,0.26068475,116030.0,116010.0,0.006]
[1755874715116,0.08688475,116020.0,116010.0,0.006]
[1755874715786,0.08688475,116020.0,116000.0,0.87769436]
[1755874715988,0.239,116010.0,116000.0,0.87769436]
[1755874716192,0.32588475,116010.0,116000.0,0.83845463]
[1755874717461,0.239,116010.0,116000.0,0.83845463]
[1755874717667,0.239,116010.0,116000.0,0.84345463]
[1755874718082,0.24,116010.0,116000.0,0.84845463]
[1755874718282,0.24,116010.0,116000.0,1.45629097]
[1755874718561,0.239,116010.0,116000.0,1.45133097]
[1755874719101,0.24,116010.0,116000.0,1.62974476]
[1755874719303,0.24,116010.0,116000.0,1.45733097]
[1755874719504,0.24,116010.0,116000.0,1.49693971]
[1755874719820,0.24,116010.0,116000.0,1.6693535]
[1755874720018,0.24,116010.0,116000.0,1.6633535]
[1755874720269,0.239,116010.0,116000.0,1.74523825]
[1755874720688,0.239,116010.0,116000.0,1.78860127]
[1755874720889,0.17272,116010.0,116000.0,2.12860127]
[1755874721268,0.001,116010.0,116000.0,2.30832127]
[1755874721475,0.002,116010.0,116000.0,2.31532127]
[1755874721680,0.001,116010.0,116000.0,2.30832127]
[1755874722377,0.001,116010.0,116000.0,2.74343761]
[1755874722776,0.001,116010.0,116000.0,2.84343761]
[1755874723006,0.06628,116040.0,116020.0,0.18983309]
[1755874723007,0.17272,116030.0,116020.0,0.18983309]
[1755874723398,0.17272,116030.0,116020.0,0.88255418]
[1755874724231,0.17272,116030.0,116020.0,0.88155418]
[1755874724681,0.17272,116030.0,116020.0,0.69472109]
[1755874725118,0.17272,116030.0,116010.0,0.17238649]
[1755874725119,0.17272,116030.0,116010.0,0.60783634]
[1755874725322,0.26271475,116030.0,116020.0,0.009]
[1755874725534,0.17372,116030.0,116020.0,0.009]
[1755874725959,0.001,116030.0,116020.0,0.009]
[1755874726161,0.17368,116030.0,116020.0,0.009]
[1755874726382,0.17368,116030.0,116020.0,0.61683634]
[1755874726816,0.17368,116030.0,116020.0,0.009]
[1755874727032,0.17368,116030.0,116020.0,0.61899114]
[1755874727238,0.17368,116030.0,116020.0,0.87610516]
[1755874727453,0.06628,116040.0,116030.0,0.17236921]
[1755874727663,0.23896,116040.0,116030.0,0.60783634]
[1755874727875,0.23896,116040.0,116030.0,0.77920555]
[1755874728113,0.23896,116040.0,116030.0,0.8660903]
[1755874728384,0.23896,116040.0,116030.0,0.8670903]
[1755874728579,0.23896,116040.0,116030.0,0.69372109]
[1755874728786,0.23896,116040.0,116030.0,0.12485027]
[1755874728989,0.23896,116040.0,116030.0,0.90505582]
[1755874729199,0.23996,116040.0,116030.0,0.91505582]
[1755874729370,0.001,116040.0,116030.0,1.27250484]
[1755874730236,0.001,116040.0,116030.0,1.37250484]
[1755874730450,43.96427228,116080.0,116070.0,0.17230981]
[1755874730712,43.96427228,116080.0,116070.0,0.88447992]
[1755874730713,44.13695228,116080.0,116070.0,0.88447992]
[1755874730929,44.13695228,116080.0,116070.0,1.2167857]
[1755874731139,44.13695228,116080.0,116070.0,1.2426847]
[1755874731358,44.13695228,116080.0,116070.0,1.2416847]
[1755874731826,44.13743482,116080.0,116070.0,1.2416847]
[1755874732039,44.13843482,116080.0,116070.0,1.08137489]
[1755874732500,44.14153482,116080.0,116070.0,0.07749938]
[1755874732919,44.14153482,116080.0,116070.0,0.037899]
[1755874733764,44.56841957,116080.0,116070.0,0.037899]
[1755874734172,44.56841957,116080.0,116070.0,0.025899]
[1755874734173,44.56741957,116080.0,116070.0,0.025899]
[1755874734378,44.56741957,116080.0,116070.0,0.034899]
[1755874734753,44.56741957,116080.0,116070.0,0.025899]
[1755874735088,44.14045482,116080.0,116070.0,0.032899]
[1755874735299,44.14045482,116080.0,115940.0,0.5890976]
[1755874735300,33.61571297,115950.0,115940.0,0.5890976]
[1755874735505,33.61571297,115950.0,115940.0,7.45877028]
[1755874735506,31.36686563,115950.0,115940.0,7.45877028]
[1755874735707,31.25505337,115950.0,115940.0,7.71980354]
[1755874735910,31.15405337,115950.0,115940.0,7.74071655]
[1755874736131,31.04442515,115950.0,115940.0,8.22466848]
[1755874736346,31.01422637,115950.0,115940.0,7.86308906]
[1755874736547,30.35854131,115950.0,115940.0,7.47565126]
[1755874736749,30.34991309,115950.0,115940.0,7.6154318]
[1755874736986,30.31971431,115950.0,115940.0,7.00759546]
[1755874737222,30.31108609,115950.0,115940.0,7.47579589]
[1755874737425,29.68942925,115950.0,115940.0,7.89734782]
[1755874737627,29.1352603,115950.0,115940.0,7.24079589]
[1755874737804,29.1372603,115950.0,115940.0,7.08424491]
[1755874738007,28.81643727,115950.0,115940.0,7.07476491]
[1755874738227,28.455949,115950.0,115940.0,7.22476491]
[1755874738470,27.52986905,115950.0,115940.0,6.60164039]
[1755874738714,27.52986905,115950.0,115940.0,5.56445281]
[1755874738947,27.48902981,115950.0,115940.0,5.97223811]
[1755874739177,27.48239809,115950.0,115940.0,5.74412286]
[1755874739469,27.48239809,115950.0,115940.0,7.35123662]
[1755874739690,27.44355535,115950.0,115940.0,7.35123662]
[1755874739922,27.44355535,115950.0,115940.0,7.16014794]
[1755874740151,27.40471261,115950.0,115940.0,6.3210984]
[1755874740385,27.39608089,115950.0,115940.0,6.1485384]
[1755874740636,27.39608089,115950.0,115940.0,6.33862742]
[1755874740874,27.35523815,115950.0,115940.0,6.31362742]
[1755874741099,27.35723815,115950.0,115940.0,6.33462742]
[1755874741327,27.34860643,115950.0,115940.0,6.33462742]
[1755874741562,27.33997471,115950.0,115940.0,6.33462742]
[1755874742022,27.33334299,115950.0,115940.0,6.33462742]
[1755874742265,27.33534299,115950.0,115940.0,6.33445931]
[1755874742518,27.32671127,115950.0,115940.0,6.33445931]
[1755874742737,27.31807955,115950.0,115940.0,6.33445931]
[1755874743097,27.30944783,115950.0,115940.0,5.91558895]
[1755874743305,27.30944783,115950.0,115940.0,5.97313993]
[1755874743531,27.30081611,115950.0,115940.0,6.01186365]
[1755874743712,27.30081611,115950.0,115940.0,6.16281267]
[1755874743897,27.26197337,115950.0,115940.0,7.51442221]
[1755874744286,27.26197337,115950.0,115940.0,7.59068386]
[1755874744287,26.63175629,115950.0,115940.0,7.59068386]
[1755874744495,26.62312457,115950.0,115940.0,7.51442221]
[1755874744711,26.56891355,115950.0,115940.0,7.77262221]
[1755874744920,26.55752592,115950.0,115940.0,6.44459259]
[1755874745126,26.46591406,115950.0,115940.0,6.55261184]
[1755874745346,26.43350389,115950.0,115940.0,6.64333184]
[1755874745549,26.38168096,115950.0,115940.0,6.65998441]
[1755874745752,26.38168096,115950.0,115940.0,6.73624606]
[1755874745753,26.34020172,115950.0,115940.0,6.73624606]
[1755874746012,26.29935898,115950.0,115940.0,6.71524606]
[1755874746220,26.29935898,115950.0,115940.0,6.19839432]
[1755874746435,26.28582807,115950.0,115940.0,6.11969267]
[1755874746689,26.24159241,115950.0,115940.0,5.37854244]
[1755874746947,26.24159241,115950.0,115940.0,5.8142453]
[1755874746948,26.2329615,115950.0,115940.0,5.8142453]
[1755874747186,26.22533059,115950.0,115940.0,5.8222453]
[1755874747423,26.22533059,115950.0,115940.0,6.6085853]
[1755874747694,26.21569968,115950.0,115940.0,6.60953432]
[1755874747946,26.20706877,115950.0,115940.0,4.84841177]
[1755874748200,26.20606877,115950.0,115940.0,5.01247177]
[1755874748412,26.20606877,115950.0,115940.0,4.49991177]
[1755874748413,26.19743786,115950.0,115940.0,4.49991177]
[1755874748641,26.19743786,115950.0,115940.0,5.68577267]
[1755874748869,26.19743786,115950.0,115940.0,5.79977267]
[1755874749095,26.19743786,115950.0,115940.0,5.23118244]
[1755874749340,26.18780695,115950.0,115940.0,6.02803432]
[1755874749796,26.17917604,115950.0,115940.0,6.02803432]
[1755874750007,26.14033692,115950.0,115940.0,6.02803432]
[1755874750216,26.14033692,115950.0,115940.0,6.22803432]
[1755874750395,26.02404155,115950.0,115940.0,6.22820254]
[1755874750622,25.88616888,115950.0,115940.0,6.22820254]
[1755874750865,25.87753797,115950.0,115940.0,6.22820254]
[1755874751079,25.77087351,115950.0,115940.0,6.23520254]
[1755874751302,25.73203439,115950.0,115940.0,6.23520254]
[1755874751503,25.72437923,115950.0,115940.0,6.06264254]
[1755874751709,25.71574704,115950.0,115940.0,6.06264254]
[1755874751923,25.68553436,115950.0,115940.0,6.15873267]
[1755874752149,25.41020217,115950.0,115940.0,6.67273267]
[1755874752351,25.40156998,115950.0,115940.0,6.67273267]
[1755874752578,25.40156998,115950.0,115940.0,5.31388079]
[1755874752786,25.39293779,115950.0,115940.0,5.66121267]
[1755874753003,25.39293779,115950.0,115940.0,5.64376365]
[1755874753206,25.39293779,115950.0,115940.0,5.81628365]
[1755874753440,25.39603779,115950.0,115940.0,5.17143177]
[1755874753650,25.39603779,115950.0,115940.0,5.03888079]
[1755874753854,25.39603779,115950.0,115940.0,5.51121267]
[1755874754057,25.39293779,115950.0,115940.0,5.80873267]
[1755874754265,25.39293779,115950.0,115940.0,5.68373267]
[1755874754466,25.39293779,115950.0,115940.0,5.03888079]
[1755874754691,25.39293779,115950.0,115940.0,5.68373267]
[1755874754897,25.39293779,115950.0,115940.0,5.78621267]
[1755874755130,25.39293779,115950.0,115940.0,5.95869267]
[1755874755334,25.3843056,115950.0,115940.0,6.24957267]
[1755874755549,25.3843056,115950.0,115940.0,5.60472079]
[1755874755768,25.36826412,115950.0,115940.0,5.60472079]
[1755874756220,25.35222264,115950.0,115940.0,5.60472079]
[1755874756430,25.34359045,115950.0,115940.0,5.60472079]
[1755874756639,25.3361824,115950.0,115940.0,5.68115066]
[1755874756848,25.32755021,115950.0,115940.0,5.68115066]
[1755874757262,25.31891802,115950.0,115940.0,5.67140536]
[1755874757886,25.31891802,115950.0,115940.0,5.66290536]
[1755874758274,25.9668799,115950.0,115940.0,3.81346434]
[1755874758480,25.9668799,115950.0,115940.0,3.90951447]
[1755874758481,25.31891802,115950.0,115940.0,3.90951447]
[1755874758722,25.31891802,115950.0,115940.0,3.95448349]
[1755874758864,25.31891802,115950.0,115940.0,3.80196349]
[1755874759074,25.32202802,115950.0,115940.0,3.61203447]
[1755874759269,25.32202802,115950.0,115940.0,3.78451447]
[1755874759455,25.31891802,115950.0,115940.0,3.92696349]
[1755874759863,25.31891802,115950.0,115940.0,3.75448349]
[1755874760104,25.32202802,115950.0,115940.0,3.92692349]
[1755874760319,25.32202802,115950.0,115940.0,4.00335336]
[1755874760519,25.32202802,115950.0,115940.0,3.87835336]
[1755874760855,25.32202802,115950.0,115940.0,4.00335336]
[1755874761317,25.30799896,115950.0,115940.0,4.00335336]
[1755874761518,25.30799896,115950.0,115940.0,3.92692349]
[1755874761722,25.30488896,115950.0,115940.0,3.92692349]
[1755874761924,25.30488896,115950.0,115940.0,3.93683746]
[1755874762134,25.30488896,115950.0,115940.0,4.04359617]
[1755874762356,25.30488896,115950.0,115940.0,3.87115617]
[1755874762577,25.30488896,115950.0,115940.0,4.04359617]
[1755874762758,25.30488896,115950.0,115940.0,3.87115617]
[1755874763073,25.30488896,115950.0,115940.0,4.04359617]
[1755874763279,25.28524865,115950.0,115940.0,3.93683746]
[1755874763613,25.28835865,115950.0,115940.0,3.93683746]
[1755874763849,25.28835865,115950.0,115940.0,3.76439746]
[1755874764062,25.28835865,115950.0,115940.0,3.93679746]
[1755874764700,25.28524865,115950.0,115940.0,3.93679746]
[1755874764934,25.12208505,115950.0,115940.0,4.717543]
[1755874765560,25.12208505,115950.0,115940.0,4.24385452]
[1755874765773,25.12208505,115950.0,115940.0,3.96439746]
[1755874765976,25.12208505,115950.0,115940.0,3.95448349]
[1755874766183,25.12208505,115950.0,115940.0,4.60057197]
[1755874766418,25.12208505,115950.0,115940.0,4.59977531]
[1755874766620,25.11345149,115950.0,115940.0,4.62308602]
[1755874767029,25.10481793,115950.0,115940.0,4.70930602]
[1755874767258,25.04196691,115950.0,115940.0,4.80018602]
[1755874767475,25.0139146,115950.0,115940.0,4.80018602]
[1755874767679,24.51495014,115950.0,115940.0,4.32649754]
[1755874767882,24.48473268,115950.0,115940.0,4.97265928]
[1755874768084,24.23093367,115950.0,115940.0,4.80025928]
[1755874768294,24.23093367,115950.0,115940.0,4.97061928]
[1755874768505,23.94694341,115950.0,115940.0,4.6039784]
[1755874768706,23.94794341,115950.0,115940.0,4.81042688]
[1755874768944,23.93930985,115950.0,115940.0,4.98278688]
[1755874769159,23.90909239,115950.0,115940.0,4.98978688]
[1755874769377,23.90045883,115950.0,115940.0,4.98978688]
[1755874769596,23.78608513,115950.0,115940.0,4.88273928]
[1755874769820,22.35287311,115950.0,115940.0,4.88273928]
[1755874770076,20.0146286,115950.0,115940.0,3.42726866]
[1755874770287,19.91428312,115950.0,115940.0,3.42061052]
[1755874770492,19.9056527,115950.0,115940.0,3.44220996]
[1755874770713,19.88767063,115950.0,115940.0,3.33393284]
[1755874770896,19.85272881,115950.0,115940.0,3.33393284]
[1755874771101,16.82252234,115950.0,115940.0,3.33893284]
[1755874771347,16.81389192,115950.0,115940.0,3.16657284]
[1755874771553,16.78368545,115950.0,115940.0,3.20476083]
[1755874771755,16.77505503,115950.0,115940.0,3.20476083]
[1755874771963,16.76642461,115950.0,115940.0,3.22536027]
[1755874772165,16.76642461,115950.0,115940.0,3.20376083]
[1755874772374,16.72499297,115950.0,115940.0,3.20376083]
[1755874772578,16.72499297,115950.0,115940.0,3.20372083]
[1755874772817,16.71736255,115950.0,115940.0,3.23432027]
[1755874773021,16.71736255,115950.0,115940.0,3.38493598]
[1755874773022,16.66315608,115950.0,115940.0,3.38493598]
[1755874773164,16.65452566,115950.0,115940.0,3.75721598]
[1755874773575,16.61568877,115950.0,115940.0,3.53561654]
[1755874773799,16.61568877,115950.0,115940.0,2.68964806]
[1755874774057,16.60705835,115950.0,115940.0,3.25142752]
[1755874774255,16.60705835,115950.0,115940.0,3.07918752]
[1755874774463,16.59842793,115950.0,115940.0,3.07918752]
[1755874774613,16.59842793,115950.0,115940.0,3.09663654]
[1755874774833,16.58979751,115950.0,115940.0,3.26887654]
[1755874775216,16.58116709,115950.0,115940.0,3.26887654]
[1755874775647,16.57253667,115950.0,115940.0,3.26887654]
[1755874776051,16.56390625,115950.0,115940.0,3.26887654]
[1755874776462,16.37253221,115950.0,115940.0,3.26887654]
[1755874776639,16.37253221,115950.0,115940.0,3.14383654]
[1755874776877,16.36390179,115950.0,115940.0,3.26883654]
[1755874777042,16.36390179,115950.0,115940.0,3.42148312]
[1755874777251,16.3250649,115950.0,115940.0,3.62148312]
[1755874777450,16.31643448,115950.0,115940.0,3.62148312]
[1755874777883,16.27759807,115950.0,115940.0,3.64603248]
[1755874778264,16.26896776,115950.0,115940.0,3.64603248]
[1755874778507,16.23357241,115950.0,115940.0,3.64603248]
[1755874778729,16.19689481,115950.0,115940.0,3.64603248]
[1755874778925,16.18983836,115950.0,115940.0,3.64603248]
[1755874779086,16.15100195,115950.0,115940.0,3.64603248]
[1755874779487,16.14237164,115950.0,115940.0,3.64603248]
[1755874779966,16.10353523,115950.0,115940.0,3.64603248]
[1755874780086,16.10353523,115950.0,115940.0,3.24603248]
[1755874780294,16.09490492,115950.0,115940.0,3.3842659]
[1755874780753,16.08627461,115950.0,115940.0,3.3842659]
[1755874781148,16.0776443,115950.0,115940.0,3.3842659]
[1755874781389,16.0776443,115950.0,115940.0,3.5842659]
[1755874781648,15.97304827,115950.0,115940.0,3.5842659]
[1755874781855,15.19841612,115950.0,115940.0,3.62771397]
[1755874782062,14.94311434,115950.0,115940.0,3.62771397]
[1755874782263,14.83742268,115950.0,115940.0,3.5842659]
[1755874782437,14.75003909,115950.0,115940.0,3.57448489]
[1755874782683,14.72413,115950.0,115940.0,3.57448489]
[1755874782885,14.71549969,115950.0,115940.0,3.57448489]
[1755874783093,14.67232382,115950.0,115940.0,3.58448403]
[1755874783295,14.57232382,115950.0,115940.0,3.58448403]
[1755874783487,14.56369351,115950.0,115940.0,3.58448403]
[1755874783695,14.53348741,115950.0,115940.0,3.58448403]
[1755874783900,14.5248571,115950.0,115940.0,3.58448403]
[1755874784143,14.5248571,115950.0,115940.0,3.55993467]
[1755874784343,14.51933679,115950.0,115940.0,3.15981467]
[1755874784500,14.51933679,115950.0,115940.0,3.25650167]
[1755874784703,14.51070753,115950.0,115940.0,3.23905265]
[1755874784901,14.51070753,115950.0,115940.0,2.72697265]
[1755874785122,14.51070753,115950.0,115940.0,2.89901265]
[1755874785363,14.50759753,115950.0,115940.0,3.23901265]
[1755874785670,14.4730591,115950.0,115940.0,3.00734167]
[1755874785871,14.37821249,115950.0,115940.0,3.34734167]
[1755874786351,14.37821249,115950.0,115940.0,3.54734167]
[1755874786913,14.38132249,115950.0,115940.0,3.37530167]
[1755874787113,14.38132249,115950.0,115940.0,3.54734167]
[1755874787785,14.38132249,115950.0,115940.0,3.17530167]
[1755874787983,14.36168673,115950.0,115940.0,2.18700417]
[1755874788201,14.36168673,115950.0,115940.0,2.29374417]
[1755874788401,14.36168673,115950.0,115940.0,2.31453914]
[1755874788534,14.36168673,115950.0,115940.0,2.65453914]
[1755874788739,14.36168673,115950.0,115940.0,3.12822762]
[1755874789021,14.36168673,115950.0,115940.0,2.78822762]
[1755874789236,14.36168673,115950.0,115940.0,2.78222762]
[1755874789371,14.36068673,115950.0,115940.0,2.19248417]
[1755874789558,14.36068673,115950.0,115940.0,2.77731284]
[1755874789765,14.36068673,115950.0,115940.0,3.11731284]
[1755874790214,14.36068673,115950.0,115940.0,3.13076186]
[1755874790388,14.36068673,115950.0,115940.0,3.33076186]
[1755874790585,14.36068673,115950.0,115940.0,3.33676186]
[1755874790795,14.36068673,115950.0,115940.0,3.22962167]
[1755874790991,14.36068673,115950.0,115940.0,2.38397319]
[1755874791195,14.36068673,115950.0,115940.0,2.38697319]
[1755874791394,14.36068673,115950.0,115940.0,3.13967956]
[1755874791657,14.36068673,115950.0,115940.0,2.96775956]
[1755874791863,14.36068673,115950.0,115940.0,3.14367956]
[1755874792033,14.36068673,115950.0,115940.0,2.66999108]
[1755874792323,14.36068673,115950.0,115940.0,3.14367956]
[1755874792881,14.36068673,115950.0,115940.0,2.03497319]
[1755874793086,14.36068673,115950.0,115940.0,0.97742705]
[1755874793296,14.36068673,115950.0,115940.0,0.61115933]
[1755874793492,14.36068673,115950.0,115940.0,0.76442899]
[1755874793727,14.36068673,115950.0,115940.0,1.13034799]
[1755874793942,14.36068673,115950.0,115940.0,0.79034799]
[1755874794765,14.36068673,115950.0,115940.0,1.12734799]
[1755874795189,14.36068673,115950.0,115940.0,1.12534799]
[1755874795610,14.36068673,115950.0,115940.0,1.12834799]
[1755874795739,14.36068673,115950.0,115940.0,1.02118211]
[1755874795948,14.34104481,115950.0,115940.0,1.02118211]
[1755874796977,14.34104481,115950.0,115940.0,1.02114211]
[1755874798625,14.34104481,115950.0,115940.0,0.84930211]
[1755874798830,14.34104481,115950.0,115940.0,1.02110211]
[1755874799238,14.34104481,115950.0,115940.0,1.01110297]
[1755874800100,14.34104481,115950.0,115940.0,1.00006297]
[1755874800403,14.34104481,115950.0,115940.0,1.00010297]
[1755874800816,14.33793481,115950.0,115940.0,1.89329047]
[1755874801026,14.34091481,115950.0,115940.0,1.89124047]
[1755874801234,14.33793481,115950.0,115940.0,1.89329047]
[1755874801402,14.33793481,115950.0,115940.0,1.89647047]
[1755874801802,14.33793481,115950.0,115940.0,2.38125147]
[1755874802041,13.49128293,115950.0,115940.0,2.57451968]
[1755874802266,13.18859812,115950.0,115940.0,2.59755392]
[1755874802546,11.75504253,115950.0,115940.0,3.86253939]
[1755874802754,10.80675543,115950.0,115940.0,3.8169047]
[1755874803022,6.12708864,115950.0,115940.0,3.8169047]
[1755874803235,5.73382178,115950.0,115940.0,3.4040837]
[1755874803574,4.0247705,115950.0,115940.0,3.4010837]
[1755874803790,0.52556518,115950.0,115940.0,3.4030837]
[1755874804002,0.00298,116040.0,116030.0,0.4]
[1755874804295,0.07574953,116040.0,116030.0,3.3739415]
[1755874804520,0.07574953,116040.0,116030.0,2.90025302]
[1755874804749,0.0002,116070.0,116050.0,1.01290468]
[1755874804989,0.0002,116070.0,116060.0,2.03366422]
[1755874805229,0.0002,116070.0,116060.0,2.10908887]
[1755874805458,0.00280233,116070.0,116060.0,1.37173487]
[1755874805929,0.00280233,116070.0,116060.0,2.03313365]
[1755874806365,0.00280233,116070.0,116060.0,2.27127921]
[1755874806580,0.00280233,116070.0,116060.0,2.43967921]
[1755874806847,0.00578233,116070.0,116060.0,2.61127921]
[1755874807057,0.00399233,116070.0,116060.0,2.61127921]
[1755874807270,0.00212,116070.0,116060.0,2.61227921]
[1755874807436,0.00212,116070.0,116060.0,1.97132945]
[1755874807793,0.00212,116070.0,116060.0,1.96828945]
[1755874807998,0.16648,116140.0,116110.0,0.17225045]
[1755874808208,0.91550976,116130.0,116120.0,0.44981547]
[1755874808407,0.17368,116130.0,116110.0,0.44981547]
[1755874808672,0.46056475,116130.0,116110.0,0.44981547]
[1755874808878,1.07621687,116120.0,116060.0,0.004]
[1755874809087,1.07621687,116120.0,116070.0,0.59550024]
[1755874809088,0.24045141,116110.0,116070.0,0.59550024]
[1755874809320,0.64590976,116080.0,116060.0,0.004]
[1755874809510,0.64394976,116070.0,116060.0,0.09088475]
[1755874809779,0.64605976,116070.0,116060.0,0.09088475]
[1755874809995,0.64605976,116070.0,116060.0,0.09288475]
[1755874810211,0.00211,116070.0,116060.0,0.09288475]
[1755874810432,0.00211,116070.0,116060.0,0.2612094]
[1755874810656,0.00211,116070.0,116060.0,0.8726894]
[1755874810657,0.00208463,116070.0,116060.0,0.8726894]
[1755874810882,0.00208463,116070.0,116060.0,2.32507742]
[1755874811121,0.00014463,116070.0,116060.0,2.38931742]
[1755874811333,0.00014463,116070.0,116060.0,3.03849718]
[1755874812509,0.00014463,116070.0,116060.0,3.18849718]
[1755874812745,0.002,116080.0,116070.0,1.69870859]
[1755874813012,0.00122,116120.0,116110.0,0.51225045]
[1755874813243,0.00122,116120.0,116110.0,0.8705352]
[1755874813244,0.0021,116120.0,116110.0,0.8705352]
[1755874813458,0.00088,116120.0,116110.0,1.6261752]
[1755874813921,0.00156509,116140.0,116130.0,0.17222078]
[1755874814146,0.00156509,116140.0,116130.0,0.08688475]
[1755874814147,0.00034509,116140.0,116130.0,0.08688475]
[1755874814366,0.00230509,116140.0,116130.0,0.08688475]
[1755874814656,0.64625485,116140.0,116130.0,0.08688475]
[1755874814867,0.00245509,116140.0,116130.0,0.08688475]
[1755874815088,0.00245509,116140.0,116100.0,0.34]
[1755874815309,0.64394976,116120.0,116110.0,0.08888475]
[1755874815528,0.64394976,116120.0,116110.0,0.08688475]
[1755874815529,0.00211,116120.0,116110.0,0.08688475]
[1755874815750,0.64605976,116120.0,116110.0,0.08688475]
[1755874816424,0.64605976,116120.0,116110.0,0.08788475]
[1755874816783,0.64605976,116120.0,116110.0,0.08688475]
[1755874817195,0.64788976,116120.0,116110.0,0.08688475]
[1755874817540,0.64788976,116120.0,116110.0,0.25816475]
[1755874817746,0.64788976,116120.0,116110.0,0.4304152]
[1755874817939,0.00394,116120.0,116110.0,0.4304152]
[1755874818149,0.64688976,116120.0,116110.0,0.7704152]
[1755874818360,0.64588976,116120.0,116110.0,0.6991752]
[1755874818479,0.64588976,116120.0,116110.0,0.8704152]
[1755874818681,0.64588976,116120.0,116110.0,0.9103073]
[1755874819104,0.64394976,116120.0,116110.0,0.9103073]
[1755874819362,0.64394976,116120.0,116110.0,0.91891982]
[1755874819506,0.64686976,116120.0,116110.0,0.9103073]
[1755874820941,0.001,116120.0,116110.0,1.0610763]
[1755874821142,0.64494976,116120.0,116110.0,1.0610763]
[1755874821339,0.001,116120.0,116110.0,1.27852532]
[1755874821643,0.64494976,116120.0,116110.0,1.48365532]
[1755874822372,0.001,116120.0,116110.0,1.58365532]
[1755874822518,0.00034509,116140.0,116130.0,0.17222078]
[1755874822741,0.00034509,116140.0,116130.0,0.53022553]
[1755874823095,0.00034509,116140.0,116130.0,0.97335553]
[1755874823296,0.64429485,116140.0,116130.0,1.41867855]
[1755874823450,0.64429485,116140.0,116130.0,2.79795755]
[1755874823705,0.64429485,116140.0,116130.0,2.05382555]
[1755874823854,0.64625485,116140.0,116130.0,1.03217153]
[1755874824058,0.64625485,116140.0,116130.0,1.20325153]
[1755874824059,0.64590976,116140.0,116130.0,1.20325153]
[1755874824259,0.64590976,116140.0,116130.0,1.03217153]
[1755874824468,0.64590976,116140.0,116130.0,1.19199653]
[1755874825062,0.64590976,116140.0,116130.0,0.8293136]
[1755874825260,0.64590976,116140.0,116130.0,0.81405738]
[1755874825521,0.00196,116140.0,116130.0,0.1307966]
[1755874825722,0.64605976,116140.0,116130.0,0.08888475]
[1755874826461,0.81705976,116140.0,116130.0,0.002]
[1755874826888,0.88325976,116140.0,116130.0,0.002]
[1755874827063,0.64590976,116140.0,116130.0,0.26110553]
[1755874827276,0.64605976,116140.0,116130.0,0.08888475]
[1755874827507,0.64605976,116140.0,116110.0,0.025921]
[1755874827871,0.17111,116130.0,116120.0,0.08688475]
[1755874828005,0.17305,116130.0,116120.0,0.08688475]
[1755874828408,0.1729,116130.0,116120.0,0.25912036]
[1755874828647,0.00194,116130.0,116120.0,0.25912036]
[1755874828839,0.0712,116140.0,116130.0,0.17222078]
[1755874829048,0.64694976,116140.0,116130.0,0.25910553]
[1755874829273,0.64394976,116140.0,116130.0,0.25910553]
[1755874829473,0.64494976,116140.0,116130.0,0.25810553]
[1755874829884,0.64394976,116140.0,116130.0,0.26323553]
[1755874830100,0.64444976,116150.0,116140.0,0.17220595]
[1755874830309,0.64444976,116150.0,116140.0,0.4300107]
[1755874830525,0.0005,116150.0,116140.0,0.7751407]
[1755874830721,0.23708,116170.0,116150.0,0.17218122]
[1755874830935,0.20754,116200.0,116160.0,0.42994105]
[1755874830936,0.06792,116200.0,116160.0,0.42994105]
[1755874831191,0.00064501,116200.0,116180.0,0.17214391]
[1755874831372,0.00064501,116200.0,116190.0,0.2590166]
[1755874831571,0.00260501,116200.0,116190.0,0.2590166]
[1755874831774,0.00260501,116200.0,116190.0,0.08688475]